Workbook

Sheet 26 февраля
K1: Утверждаю:
K2: Директор школы | N2: Н.П.Семенов
F4: МЕНЮ ДНЯ | M4: ='[1]19'!$B$1 -> 26 | N4: февраль | O4: 2026 год
E6: МБОУ"ПАВЛОВСКАЯ СОШ"
A7: 19
A8: ПРИЕМ | B8: РАЗДЕЛ | C8: № РЕЦ. | D8: БЛЮДО | J8: ВЫХОД | K8: ЦЕНА | L8: КАЛОРИЙ | M8: БЕЛКИ | N8: ЖИРЫ | O8: УГЛЕВО
A9: ПИЩИ | J9: г | L9: НОСТЬ | O9: ДЫ
B10: ОВЗ | D10: 7-11 лет
A11: ЗАВТРАК | C11: 91№210 | D11: ='[2]19'!$B$7 -> КАША МОЛ,"ДРУЖБА" | J11: 200 | K11: ='[2]19'!$BK$7 -> 19.94 | L11: 240 | M11: 6.33 | N11: 8.68 | O11: 33.44
C12: №8 | D12: ='[2]19'!$B$8 -> БАТОН | J12: 30 | K12: ='[2]19'!$BK$8 -> 3.51 | L12: 85.7 | M12: 2.4 | N12: 0.8 | O12: 16.7
C13: 207№310 | D13: ='[2]19'!$B$9 -> КОМПОТ ИЗ СВЕЖИХ ЯГОД | J13: 200 | K13: ='[2]19'!$BK$9 -> 2.30 | L13: =G13 -> 0 | M13: =H13 -> 0 | N13: =I13 -> 0 | O13: =J13 -> 200
D14: ИТОГО | J14: =SUM(J11:J13) -> 430 | K14: =SUM(K11:K13) -> 25.76 | L14: =SUM(L11:L13) -> 325.7 | M14: =SUM(M11:M13) -> 8.73 | N14: =SUM(N11:N13) -> 9.48 | O14: =SUM(O11:O13) -> 250.14
D15: от 12 и старше лет
C16: 91№210 | D16: ='[2]19'!$B$21 -> КАША МОЛ,"ДРУЖБА" | J16: 200 | K16: ='[2]19'!$BK$21 -> 19.94 | L16: 240 | M16: 6.33 | N16: 8.68 | O16: 33.44
C17: №8 | D17: ='[2]19'!$B$22 -> БАТОН | J17: 30 | K17: ='[2]19'!$BK$22 -> 3.51 | L17: 85.7 | M17: 2.4 | N17: 0.8 | O17: 16.7
C18: 207№310 | D18: ='[2]19'!$B$23 -> КОМПОТ ИЗ СВЕЖИХ ЯГОД | J18: 200 | K18: ='[2]19'!$BK$23 -> 2.30 | L18: =F18 -> 0 | M18: =G18 -> 0 | N18: =H18 -> 0 | O18: =J18 -> 200
D19: ИТОГО | J19: =SUM(J16:J18) -> 430 | K19: =SUM(K16:K18) -> 25.76 | L19: =SUM(L16:L18) -> 325.7 | M19: =SUM(M16:M18) -> 8.73 | N19: =SUM(N16:N18) -> 9.48 | O19: =SUM(O16:O18) -> 250.14
B20: 5-11 класс
A21: ОБЕД | D21: от 12 и старше лет
C22: 51№42 | D22: ='[1]19'!$B$21 -> ВИНЕГРЕТ ОВОЩНОЙ | J22: 100 | K22: ='[1]19'!$BK$21 -> 0.92 | L22: 66 | M22: 1.4 | N22: 2.6 | O22: 8.2
C23: 74№55(1) | D23: ='[1]19'!$B$22 -> ЩИ ИЗ СВЕЖЕЙ КАПУСТЫ С КАРТОФЕЛЕМ | J23: 250 | K23: ='[1]19'!$BK$22 -> 7.24 | L23: 96 | M23: 2 | N23: 5.4 | O23: 8.8
C24: 183№138(1) | D24: ='[1]19'!$B$23 -> ПЛОВ ИЗ КУРИЦЫ | J24: 200 | K24: ='[1]19'!$BK$23 -> 39.76 | L24: 417 | M24: 18.2 | N24: 23.2 | O24: 32.2
C25: 201№304 | D25: ='[1]19'!$B$24 -> КОФЕЙНЫЙ НАПИТОК | J25: 200 | K25: ='[1]19'!$BK$24 -> 9.35 | L25: 94 | M25: 2.9 | N25: 2.8 | O25: 18.5
C26: №7 | D26: ='[1]19'!$B$25 -> ХЛЕБ | J26: 50 | K26: ='[1]19'!$BK$25 -> 3.25 | L26: 108.6 | M26: 3.96 | N26: 0.72 | O26: 1.38
D27: ='[1]19'!$B$26 -> БУЛОЧКА СДОБНАЯ | J27: 60 | K27: ='[1]19'!$BK$26 -> 35.00 | L27: 253 | M27: 7 | N27: 9 | O27: 37.3
D28: ='[3]9'!$B$27 -> 0 | K28: ='[1]19'!$BK$27 -> 0.00
D29: ='[3]9'!$B$28 -> 0 | K29: ='[3]3'!$BK$28 -> 0.00
D30: ИТОГО | J30: =SUM(J22:J29) -> 860 | K30: =SUM(K22:K29) -> 95.52 | L30: =SUM(L21:L29) -> 1034.6 | M30: =SUM(M21:M29) -> 35.46 | N30: =SUM(N21:N29) -> 43.72 | O30: =SUM(O21:O29) -> 106.38
D31: Составил Агеева Г.Н. | M31: Повар Фролова Л.Н.
